[Event "CRO Team Cup 2018"]
[Site "Mali Losinj"]
[Date "2018.05.16"]
[Round "1.7"]
[White "Petrov, Jole"]
[Black "Huis, Dinko"]
[Result "1-0"]
[ECO "A17"]
[WhiteElo "2408"]
[BlackElo "2158"]
[Annotator "ChessBase"]
[PlyCount "63"]
[EventDate "2018.??.??"]
[EventType "team-tourn"]
[EventCountry "CRO"]
[SourceTitle "playchess.com"]
[Source "ChessBase"]
[SourceQuality "1"]
[TimeControl "40/5400+30:1800+30"]

1. Nf3 {[%emt 0:00:30]} Nf6 {[%emt 0:01:00]} 2. c4 {[%emt 0:00:00]} e6 {[%emt 0:00:00]} 3. g3 {[%emt 0:00:00]} b6 {[%emt 0:00:00]} 4. Bg2 {[%emt 0:00:00]} Bb7 {[%emt 0:00:00]} 5. Nc3 {[%emt 0:00:00]} Bb4 {[%emt 0:04:00]} 6. d3 {[%emt 0:02:30]} Bxc3+ {[%emt 0:01:30]} 7. bxc3 {[%emt 0:00:00]} O-O {[%emt 0:00:00]} 8. e4 {[%emt 0:00:00]} d6 {[%emt 0:00:00]} 9. O-O {[%emt 0:00:30]} Nbd7 {[%emt 0:01:30]} 10. Nh4 {[%emt 0:02:30]} Rb8 {[%emt 0:00:30]} 11. f4 {[%emt 0:00:30]} Nc5 {[%emt 0:02:30]} 12. f5 {[%emt 0:05:30]} e5 {[%emt 0:02:30]} 13. Be3 {[%emt 0:06:30]} Bc6 {[%emt 0:08:30]} 14. h3 {[%emt 0:03:30]} b5 {[%emt 0:01:30]} 15. cxb5 {[%emt 0:00:30]} Bxb5 {[%emt 0:00:30]} 16. c4 {[%emt 0:01:30]} Bc6 {[%emt 0:03:30]} 17. Rf2 {[%emt 0:24:30]} Rb6 {[%emt 0:13:30]} 18. Bf1 {[%emt 0:01:30]} Ba4 {[%emt 0:19:30]} 19. Qc1 {[%emt 0:05:30]} Nfd7 {[%emt 0:04:30]} 20. f6 {[%emt 0:18:30]} Nxf6 {[%emt 0:00:00]} 21. Bg5 {[%emt 0:01:30]} Bd7 {[%emt 0:05:00]} 22. Bxf6 {[%emt 0:06:50]} gxf6 {[%emt 0:00:30]} 23. Qh6 {[%emt 0:00:14]} Kh8 {[%emt 0:01:30]} 24. Rxf6 {[%emt 0:01:03]} Rb8 {[%emt 0:01:30]} 25. Be2 {[%emt 0:06:22]} Be6 {[%emt 0:17:12]} 26. Raf1 {[%emt 0:00:38]} Nd7 {[%emt 0:00:30]} 27. Rxe6 {[%emt 0:05:35]} fxe6 {[%emt 0:00:12]} 28. Ng6+ {[%emt 0:00:03]} Kg8 {[%emt 0:00:18]} 29. Nxf8 {[%emt 0:00:08]} Nxf8 {[%emt 0:00:17]} 30. Bh5 {[%emt 0:00:13]} c6 {[%emt 0:06:59]} 31. Rf7 {[%emt 0:01:28]} Qb6+ {[%emt 0:01:59]} 32. Kg2 {[%emt 0:00:07]} 1-0

[Event "CRO Team Cup 2018"]
[Site "Mali Losinj"]
[Date "2018.05.16"]
[Round "1.8"]
[White "Bojanic, Borislav"]
[Black "Zelenika, Srdjan"]
[Result "0-1"]
[ECO "E92"]
[WhiteElo "1914"]
[BlackElo "2218"]
[Annotator "NA"]
[PlyCount "108"]
[EventDate "2018.??.??"]
[EventType "team-tourn"]
[EventCountry "CRO"]
[SourceTitle "playchess.com"]
[Source "ChessBase"]
[SourceQuality "1"]
[TimeControl "40/5400+30:1800+30"]

1. d4 {[%emt 0:00:30]} Nf6 {[%emt 0:01:00]} 2. c4 {[%emt 0:00:00]} g6 {[%emt 0:00:00]} 3. Nc3 {[%emt 0:00:00]} Bg7 {[%emt 0:00:00]} 4. e4 {[%emt 0:00:30]} d6 {[%emt 0:00:00]} 5. Nf3 {[%emt 0:00:30]} O-O {[%emt 0:00:00]} 6. Be2 {[%emt 0:00:30]} e5 {[%emt 0:00:30]} 7. dxe5 {[%emt 0:03:30]} dxe5 {[%emt 0:00:00]} 8. Qxd8 {[%emt 0:00:30]} Rxd8 {[%emt 0:00:00]} 9. Bg5 {[%emt 0:00:30]} Nbd7 {[%emt 0:01:30]} 10. O-O-O {[%emt 0:02:30]} Rf8 {[%emt 0:15:30]} 11. Rd2 {[%emt 0:11:30] E92: King's Indian: Classical: 6 Be2 e5: 7 dxe5, 7 Be3 and Petrosian System without 7...Nbd7} (11. Nd5 c6 12. Ne7+ Kh8 13. Be3 Re8 14. Nxc8 Raxc8 15. g4 Nf8 16. Nd2 Ne6 17. g5 Nd7 18. Bg4 Bf8 19. Nb3 Nb6 20. Bxe6 Rxe6 21. Nc5 Re7 22. b3 h6 {1-0 (35) Jakovenko,D (2724)-Paragua,M (2565) Tromsoe 2013}) 11... c6 {[%emt 0:00:30]} 12. Rhd1 {[%emt 0:00:30]} Nc5 {[%emt 0:05:30]} 13. Rd8 $146 {[%emt 0:10:30]} ({Predecessor:} 13. Bd3 Bg4 14. Bc2 Ne6 15. Be3 Nh5 16. h3 Bxf3 17. gxf3 Nd4 18. Bxd4 exd4 {0-1 (37) Golyshkina,M (1706)-Sobina,P (1977) Voronezh 2014}) 13... Ne6 {[%emt 0:21:30]} 14. Rxf8+ {[%emt 0:00:30]} Kxf8 {[%emt 0:00:30]} 15. Bh4 {[%emt 0:02:30]} Nd7 {[%emt 0:05:30]} 16. Kb1 {[%emt 0:00:30]} h6 {[%emt 0:08:30]} 17. h3 {[%emt 0:01:30]} a5 {[%emt 0:00:30]} 18. a4 {[%emt 0:04:30]} Ke8 {[%emt 0:01:30]} 19. Bg3 {[%emt 0:05:30]} h5 {[%emt 0:08:30]} 20. Bh2 {[%emt 0:00:30]} Ke7 {[%emt 0:02:30]} 21. Bf1 {[%emt 0:00:30]} Nec5 {[%emt 0:01:30]} 22. Nd2 $15 {[%emt 0:01:30]} Nf8 {[%emt 0:02:30]} 23. f4 {[%emt 0:00:30]} exf4 {[%emt 0:01:30]} 24. Bxf4 {[%emt 0:00:30]} Nfe6 {[%emt 0:00:00]} 25. Be3 {[%emt 0:02:30]} Bxc3 {[%emt 0:00:00]} 26. bxc3 {[%emt 0:00:30]} Nxa4 {[%emt 0:00:30]} 27. Kc2 {[%emt 0:00:30]} Nac5 {[%emt 0:00:30]} 28. e5 {[%emt 0:02:30]} a4 {[%emt 0:01:30]} 29. Nf3 {[%emt 0:00:30]} Ra5 {[%emt 0:00:30]} 30. Bf2 {[%emt 0:01:30]} Bd7 {[%emt 0:03:30]} 31. Bh4+ {[%emt 0:00:30]} Ke8 {[%emt 0:00:30]} 32. Nd4 {[%emt 0:00:30]} g5 {[%emt 0:05:04]} 33. Bg3 {[%emt 0:00:30]} Ne4 {[%emt 0:01:11]} 34. Bh2 {[%emt 0:00:30]} Nf4 {[%emt 0:02:58]} 35. Nf3 {[%emt 0:01:30]} Bf5 {[%emt 0:02:13]} 36. Nd4 {[%emt 0:02:30]} Nf2+ {[%emt 0:03:03]} 37. Nxf5 {[%emt 0:00:30]} Nxd1 {[%emt 0:00:04]} 38. Bxf4 {[%emt 0:02:30]} gxf4 {[%emt 0:00:43]} 39. Nd6+ {[%emt 0:01:30]} Ke7 {[%emt 0:00:17]} 40. Nxb7 {[%emt 0:01:30]} Ne3+ {[%emt 0:30:30]} 41. Kb1 {[%emt 0:00:00]} Ra7 {[%emt 0:00:00]} 42. Nc5 {[%emt 0:01:00]} Nxf1 {[%emt 0:00:00]} 43. Nd3 {[%emt 0:00:00]} Nd2+ {[%emt 0:00:00]} 44. Ka2 {[%emt 0:00:00]} Nxc4 {[%emt 0:00:00]} 45. Nxf4 {[%emt 0:00:30]} h4 {[%emt 0:00:00]} 46. e6 {[%emt 0:01:30]} Rb7 {[%emt 0:00:00]} 47. exf7 {[%emt 0:01:30]} Rb2+ {[%emt 0:00:00]} 48. Ka1 {[%emt 0:00:30]} Kxf7 {[%emt 0:00:00]} 49. Nd3 {[%emt 0:00:30]} Rxg2 {[%emt 0:00:00]} 50. Nf4 {[%emt 0:01:30]} Rh2 {[%emt 0:00:00]} 51. Kb1 {[%emt 0:00:30]} a3 {[%emt 0:00:00]} 52. Ka1 {[%emt 0:00:30]} Na5 {[%emt 0:00:00]} 53. Nd3 {[%emt 0:00:00]} Nb3+ {[%emt 0:00:00]} 54. Kb1 {[%emt 0:00:00]} a2# {[%emt 0:00:00]} 0-1

[Event "CRO Team Cup 2018"]
[Site "Mali Losinj"]
[Date "2018.05.16"]
[Round "1.11"]
[White "Ivankovic, Ivo"]
[Black "Djurovic, Goran"]
[Result "1-0"]
[ECO "A19"]
[WhiteElo "2102"]
[BlackElo "2394"]
[Annotator "ChessBase"]
[PlyCount "151"]
[EventDate "2018.??.??"]
[EventType "team-tourn"]
[EventCountry "CRO"]
[SourceTitle "playchess.com"]
[Source "ChessBase"]
[SourceQuality "1"]
[TimeControl "40/5400+30:1800+30"]

1. c4 {[%emt 0:00:30]} Nf6 {[%emt 0:03:00]} 2. Nc3 {[%emt 0:00:30]} e6 {[%emt 0:00:30]} 3. e4 {[%emt 0:03:30]} c5 {[%emt 0:00:30]} 4. e5 {[%emt 0:02:30]} Ng8 {[%emt 0:00:30]} 5. Nf3 {[%emt 0:03:30]} Nc6 {[%emt 0:00:30]} 6. Bd3 {[%emt 0:03:30]} d6 {[%emt 0:06:30]} 7. exd6 {[%emt 0:04:30]} Nf6 {[%emt 0:01:30]} 8. Ne4 {[%emt 0:04:30]} Nxe4 {[%emt 0:00:30]} 9. Bxe4 {[%emt 0:00:00]} Qxd6 {[%emt 0:00:30]} 10. O-O {[%emt 0:01:00]} Be7 {[%emt 0:01:30]} 11. b3 {[%emt 0:07:30]} O-O {[%emt 0:21:30]} 12. Bb2 {[%emt 0:02:30]} Rd8 {[%emt 0:00:30]} 13. Qe2 {[%emt 0:02:30]} f6 {[%emt 0:03:30]} 14. Rad1 {[%emt 0:04:30]} e5 {[%emt 0:00:30]} 15. Bb1 {[%emt 0:01:30]} Nb4 {[%emt 0:04:30]} 16. Ne1 {[%emt 0:04:30]} Nc6 {[%emt 0:04:30]} 17. Qh5 {[%emt 0:03:30]} g6 {[%emt 0:01:30]} 18. Bxg6 {[%emt 0:02:30]} hxg6 {[%emt 0:00:00]} 19. Qxg6+ {[%emt 0:00:30]} Kf8 {[%emt 0:01:00]} 20. f4 {[%emt 0:02:30]} exf4 {[%emt 0:03:30]} 21. Qh6+ {[%emt 0:03:30]} Ke8 {[%emt 0:00:30]} 22. Rxf4 {[%emt 0:00:30]} Nd4 {[%emt 0:02:30]} 23. Bxd4 {[%emt 0:05:30]} cxd4 {[%emt 0:00:30]} 24. Nd3 {[%emt 0:00:30]} f5 {[%emt 0:14:30]} 25. Qh5+ {[%emt 0:04:30]} Kd7 {[%emt 0:00:30]} 26. Rxf5 {[%emt 0:01:30]} Kc7 {[%emt 0:03:30]} 27. Rd5 {[%emt 0:05:30]} Qf6 {[%emt 0:02:30]} 28. Rxd8 {[%emt 0:02:30]} Bxd8 {[%emt 0:08:44]} 29. Rf1 {[%emt 0:00:30]} Qg5 {[%emt 0:03:14]} 30. Qe8 {[%emt 0:01:30]} Bd7 {[%emt 0:06:28]} 31. Rf7 {[%emt 0:03:30]} Qf5 {[%emt 0:00:01]} 32. Qe5+ {[%emt 0:02:39]} Qxe5 {[%emt 0:00:39]} 33. Nxe5 {[%emt 0:00:11]} Kd6 {[%emt 0:00:07]} 34. Nxd7 {[%emt 0:01:24]} Bg5 {[%emt 0:01:38]} 35. d3 {[%emt 0:06:34]} Re8 {[%emt 0:00:57]} 36. Nf6 {[%emt 0:02:03]} Be3+ {[%emt 0:02:57]} 37. Kf1 {[%emt 0:00:20]} Rh8 {[%emt 0:00:11]} 38. Ng4 {[%emt 0:01:51]} Bd2 {[%emt 0:01:19]} 39. Rxb7 {[%emt 0:00:48]} Rf8+ {[%emt 0:00:11]} 40. Ke2 {[%emt 0:00:00]} Bc3 {[%emt 0:01:04]} 41. Rxa7 {[%emt 0:05:10]} Re8+ {[%emt 0:00:30]} 42. Kf3 {[%emt 0:00:30]} Rf8+ {[%emt 0:00:00]} 43. Ke4 {[%emt 0:01:30]} Re8+ {[%emt 0:00:00]} 44. Kf5 {[%emt 0:00:30]} Re2 {[%emt 0:00:30]} 45. h4 {[%emt 0:01:30]} Rxg2 {[%emt 0:00:00]} 46. h5 {[%emt 0:00:30]} Rg3 {[%emt 0:00:00]} 47. Ra6+ {[%emt 0:01:30]} Kc5 {[%emt 0:00:30]} 48. Ne5 {[%emt 0:01:30]} Bd2 {[%emt 0:00:30]} 49. a3 {[%emt 0:01:30]} Rg5+ {[%emt 0:00:00]} 50. Ke4 {[%emt 0:01:30]} Rxe5+ {[%emt 0:00:00]} 51. Kxe5 {[%emt 0:00:30]} Bf4+ {[%emt 0:00:30]} 52. Ke4 {[%emt 0:00:00]} Bd2 {[%emt 0:00:30]} 53. b4+ {[%emt 0:01:00]} Bxb4 {[%emt 0:00:30]} 54. axb4+ {[%emt 0:00:00]} Kxb4 {[%emt 0:00:00]} 55. Kxd4 {[%emt 0:00:00]} Kb3 {[%emt 0:00:00]} 56. c5 {[%emt 0:00:30]} Kc2 {[%emt 0:00:30]} 57. c6 {[%emt 0:00:30]} Kd2 {[%emt 0:00:30]} 58. c7 {[%emt 0:00:30]} Ke2 {[%emt 0:00:30]} 59. h6 {[%emt 0:00:30]} Kf3 {[%emt 0:00:00]} 60. h7 {[%emt 0:00:00]} Kf4 {[%emt 0:00:00]} 61. Kc5 {[%emt 0:01:00]} Ke3 {[%emt 0:00:30]} 62. d4 {[%emt 0:00:30]} Ke4 {[%emt 0:00:00]} 63. d5 {[%emt 0:00:00]} Ke5 {[%emt 0:00:00]} 64. h8=R {[%emt 0:00:00]} Ke4 {[%emt 0:00:30]} 65. d6 {[%emt 0:00:30]} Ke5 {[%emt 0:00:00]} 66. d7 {[%emt 0:00:00]} Ke4 {[%emt 0:00:00]} 67. d8=R {[%emt 0:00:00]} Ke5 {[%emt 0:00:00]} 68. c8=R {[%emt 0:00:30]} Ke4 {[%emt 0:00:00]} 69. Rhe8+ {[%emt 0:00:30]} Kf5 {[%emt 0:00:30]} 70. Kb6 {[%emt 0:00:30]} Kf4 {[%emt 0:00:00]} 71. Ka7 {[%emt 0:00:30]} Kf5 {[%emt 0:00:00]} 72. Ka8 {[%emt 0:00:30]} Kf4 {[%emt 0:00:30]} 73. Ra5 {[%emt 0:03:30]} Kg4 {[%emt 0:00:00]} 74. Rc4+ {[%emt 0:00:00]} Kf3 {[%emt 0:00:00]} 75. Ra3+ {[%emt 0:00:00]} Kf2 {[%emt 0:00:30]} 76. Rc2+ {[%emt 0:00:30]} 1-0

[Event "CRO Team Cup 2018"]
[Site "Mali Losinj"]
[Date "2018.05.16"]
[Round "1.12"]
[White "Bukal, Vladimir Jr"]
[Black "Bender, Zdenko"]
[Result "1-0"]
[ECO "A04"]
[WhiteElo "2388"]
[BlackElo "2047"]
[Annotator "NA"]
[PlyCount "80"]
[EventDate "2018.??.??"]
[EventType "team-tourn"]
[EventCountry "CRO"]
[SourceTitle "playchess.com"]
[Source "ChessBase"]
[SourceQuality "1"]
[TimeControl "40/5400+30:1800+30"]

1. Nf3 {[%emt 0:00:30]} c6 {[%emt 0:03:00]} 2. g3 {[%emt 0:00:00]} Na6 {[%emt 0:01:30]} 3. Bg2 {[%emt 0:00:00]} g6 {[%emt 0:01:30]} 4. O-O {[%emt 0:00:30]} Bg7 {[%emt 0:00:30]} 5. d4 {[%emt 0:00:30]} Nf6 {[%emt 0:01:30]} 6. c4 {[%emt 0:00:30]} d5 {[%emt 0:01:30]} 7. cxd5 {[%emt 0:01:30]} Nxd5 {[%emt 0:01:30]} 8. e4 {[%emt 0:03:30]} Ndc7 {[%emt 0:00:30]} 9. h3 {[%emt 0:00:30]} O-O {[%emt 0:00:30]} 10. Nc3 {[%emt 0:00:30]} Be6 {[%emt 0:04:30]} 11. Re1 {[%emt 0:02:30]} Qc8 {[%emt 0:02:30]} 12. Kh2 {[%emt 0:00:30]} Rd8 {[%emt 0:01:30]} 13. Be3 {[%emt 0:00:30]} b5 {[%emt 0:05:30]} 14. Rc1 {[%emt 0:04:30]} Qb7 {[%emt 0:00:30]} 15. b3 {[%emt 0:06:30]} Rac8 {[%emt 0:01:30]} 16. Qe2 {[%emt 0:03:30]} Bd7 {[%emt 0:03:30]} 17. Red1 {[%emt 0:03:30]} Be8 {[%emt 0:01:30]} 18. h4 {[%emt 0:05:30]} Na8 {[%emt 0:05:30]} 19. e5 {[%emt 0:09:30]} N6c7 {[%emt 0:03:30]} (19... N8c7 $16) 20. Ne4 {[%emt 0:05:30]} a5 {[%emt 0:02:30]} 21. Nc5 {[%emt 0:01:30]} Qb8 {[%emt 0:04:30]} 22. Bh3 {[%emt 0:02:30]} e6 {[%emt 0:02:30]} 23. h5 {[%emt 0:00:30]} Nb6 {[%emt 0:06:30]} 24. hxg6 {[%emt 0:00:30]} hxg6 {[%emt 0:00:30]} 25. Bg5 {[%emt 0:06:30]} b4 {[%emt 0:04:30]} 26. Bxd8 {[%emt 0:07:30]} Rxd8 {[%emt 0:00:30]} 27. Ng5 {[%emt 0:00:30]} Nb5 {[%emt 0:01:30]} 28. Qg4 {[%emt 0:03:30]} Bh6 {[%emt 0:02:30]} 29. Qh4 {[%emt 0:07:30]} Bxg5 {[%emt 0:02:30]} 30. Qxg5 {[%emt 0:00:30]} Rxd4 {[%emt 0:01:30]} 31. Nxe6 {[%emt 0:01:30]} Rxd1 {[%emt 0:05:30]} 32. Rxd1 {[%emt 0:00:00]} Nd5 {[%emt 0:00:30] [#]} 33. Rxd5 {[%emt 0:06:40]} cxd5 {[%emt 0:01:30]} 34. Qf6 {[%emt 0:00:06]} fxe6 {[%emt 0:00:30]} 35. Bxe6+ {[%emt 0:00:03]} Kh7 {[%emt 0:00:30]} 36. Qe7+ {[%emt 0:00:03]} Bf7 {[%emt 0:02:30]} 37. Qxf7+ {[%emt 0:00:06]} Kh6 {[%emt 0:00:30]} 38. Qf4+ {[%emt 0:00:09]} Kg7 {[%emt 0:01:30]} 39. Qf6+ {[%emt 0:00:05]} Kh7 {[%emt 0:00:30]} 40. Bf7 {[%emt 0:00:00]} Qd8 {[%emt 0:32:30]} 1-0

[Event "CRO Team Cup 2018"]
[Site "Mali Losinj"]
[Date "2018.05.16"]
[Round "1.16"]
[White "Blaga, Marijan"]
[Black "Bobanac, Miro"]
[Result "1/2-1/2"]
[ECO "B02"]
[WhiteElo "1993"]
[BlackElo "2276"]
[Annotator "NA"]
[PlyCount "172"]
[EventDate "2018.??.??"]
[EventType "team-tourn"]
[EventCountry "CRO"]
[SourceTitle "playchess.com"]
[Source "ChessBase"]
[SourceQuality "1"]
[TimeControl "40/5400+30:1800+30"]

1. e4 {[%emt 0:00:30]} Nf6 {[%emt 0:03:00]} 2. Nc3 {[%emt 0:01:30]} c6 {[%emt 0:03:30] B02: Alekhine's Defence: Chase Variation and lines with early Nc3} (2... e5 3. Bc4 Nc6 4. d3 Na5 5. Bb5 a6 6. Ba4 b5 7. Bb3 d6 8. f4 Be7 9. Nf3 exf4 10. Bxf4 O-O 11. O-O Nxb3 12. axb3 b4 {1-0 (36) Nepomniachtchi,I (2767)-Howell,D (2644) Doha 2016}) 3. d4 {[%emt 0:07:30]} g6 {[%emt 0:01:30]} 4. e5 {[%emt 0:01:30]} Nd5 {[%emt 0:00:30]} 5. Nxd5 {[%emt 0:00:30]} cxd5 {[%emt 0:00:30]} 6. c3 {[%emt 0:01:30]} d6 $146 {[%emt 0:01:30]} ({Predecessor:} 6... Bg7 7. Be3 Nc6 8. Qd2 d6 9. exd6 Qxd6 10. Bf4 e5 11. dxe5 Bxe5 12. Bxe5 Qxe5+ {½-½ (50) Mikulas,D (2176)-Minich,P (2208) Slovakia 2002}) 7. f4 {[%emt 0:02:30]} Bg7 {[%emt 0:01:30]} 8. Nf3 {[%emt 0:00:30]} O-O {[%emt 0:01:30]} 9. Bd3 {[%emt 0:01:30]} Nc6 {[%emt 0:04:30]} 10. O-O {[%emt 0:01:30]} Rb8 {[%emt 0:04:30]} 11. Qb3 {[%emt 0:06:30]} e6 {[%emt 0:11:30]} 12. Qa3 {[%emt 0:04:30]} Re8 {[%emt 0:06:30]} 13. Bd2 {[%emt 0:07:30]} Bf8 {[%emt 0:05:30]} 14. Qb3 {[%emt 0:01:30]} b5 {[%emt 0:01:30]} 15. Qc2 {[%emt 0:06:30]} b4 {[%emt 0:05:30]} 16. cxb4 {[%emt 0:03:30]} Qb6 {[%emt 0:03:30]} 17. Bc3 {[%emt 0:02:30]} ({White should try} 17. b5 $14 Nxd4 18. Nxd4 Qxd4+ 19. Kh1) 17... Nxb4 {[%emt 0:01:30]} 18. Bxb4 {[%emt 0:03:30]} Qxb4 {[%emt 0:00:00]} 19. Rab1 {[%emt 0:05:30]} Bd7 {[%emt 0:03:00]} 20. Qd2 {[%emt 0:08:30]} (20. h4 $11 {remains equal.}) 20... Qb6 {[%emt 0:00:30]} ({Black should try} 20... Qxd2 $17 21. Nxd2 dxe5 22. fxe5 Bh6) 21. Rfc1 {[%emt 0:00:30]} Bh6 {[%emt 0:05:30]} 22. Qe3 {[%emt 0:06:30]} Rec8 {[%emt 0:05:30]} 23. Rd1 {[%emt 0:04:30]} Ba4 {[%emt 0:05:30]} 24. b3 {[%emt 0:01:30]} Be8 {[%emt 0:00:00]} 25. Rdc1 {[%emt 0:01:23]} dxe5 {[%emt 0:04:00]} 26. Nxe5 {[%emt 0:04:35]} f6 {[%emt 0:02:53]} 27. Ng4 {[%emt 0:01:33]} Bg7 {[%emt 0:00:11]} 28. Re1 {[%emt 0:02:50]} h5 {[%emt 0:02:22]} 29. Nf2 {[%emt 0:00:38]} Bf7 {[%emt 0:01:44]} 30. Rbd1 {[%emt 0:00:18]} Rc3 {[%emt 0:01:11]} 31. Qd2 {[%emt 0:01:18]} Qxd4 {[%emt 0:01:15]} 32. Bxg6 {[%emt 0:00:59]} Qxd2 {[%emt 0:01:21]} 33. Bxf7+ {[%emt 0:00:10]} Kxf7 {[%emt 0:00:09]} 34. Rxd2 {[%emt 0:00:05]} Bh6 {[%emt 0:00:36]} 35. Rd4 {[%emt 0:00:54]} Rbc8 {[%emt 0:05:25]} 36. Kf1 {[%emt 0:02:14]} Rc2 {[%emt 0:01:21]} 37. Ra4 {[%emt 0:01:34]} R8c7 {[%emt 0:00:31]} 38. Re2 {[%emt 0:01:14]} Rc1+ {[%emt 0:03:34]} 39. Re1 {[%emt 0:00:02]} Kg6 {[%emt 0:00:19]} 40. g3 {[%emt 0:00:00]} Kf5 {[%emt 0:03:38]} (40... Rxe1+ $15 41. Kxe1 Bf8) 41. h3 {[%emt 0:05:43]} Bf8 {[%emt 0:06:30]} 42. g4+ {[%emt 0:00:30]} hxg4 {[%emt 0:00:30]} 43. hxg4+ {[%emt 0:00:30]} Kg6 {[%emt 0:00:00]} 44. Ra6 {[%emt 0:02:30]} Bb4 {[%emt 0:07:02]} 45. Rxc1 {[%emt 0:05:30]} Rxc1+ {[%emt 0:00:28]} 46. Ke2 {[%emt 0:02:30]} Rc2+ {[%emt 0:00:42]} 47. Kf3 {[%emt 0:00:30]} Rc3+ {[%emt 0:01:18]} 48. Ke2 {[%emt 0:00:30]} Rc2+ {[%emt 0:03:23]} 49. Kf3 {[%emt 0:00:30]} Bc5 {[%emt 0:06:20]} 50. Nd3 $1 {[%emt 0:04:53]} Bb6 {[%emt 0:00:10]} 51. Ra4 {[%emt 0:01:19]} Rd2 {[%emt 0:00:33]} 52. Nb4 {[%emt 0:01:19]} e5 {[%emt 0:00:24]} 53. fxe5 {[%emt 0:03:24]} fxe5 {[%emt 0:00:12]} 54. Nc6 {[%emt 0:01:25]} e4+ {[%emt 0:00:52]} 55. Kf4 {[%emt 0:02:17]} Rf2+ {[%emt 0:02:39]} 56. Ke5 {[%emt 0:00:56]} e3 {[%emt 0:02:37]} 57. Ne7+ {[%emt 0:00:25]} Kg5 {[%emt 0:00:26]} 58. Nxd5 {[%emt 0:00:10]} Rg2 $2 {[%emt 0:02:19]} (58... Rf8 $17 59. Nb4 Re8+ 60. Kd6 Rd8+ 61. Ke7 Rd4) 59. Re4 {[%emt 0:00:48]} Rxa2 $16 {[%emt 0:01:16]} ({Black should try} 59... e2 $14 60. Nc3 e1=R 61. Rxe1 Ba5 62. Ne4+ Kxg4) 60. Nxb6 {[%emt 0:00:25]} axb6 {[%emt 0:00:22]} 61. Rxe3 {[%emt 0:00:12]} Kxg4 {[%emt 0:00:19]} 62. Kd4 {[%emt 0:00:38]} Kf5 {[%emt 0:00:59]} 63. Kc4 {[%emt 0:00:15]} Rd2 {[%emt 0:00:55]} 64. Kb5 {[%emt 0:00:41]} Rd6 {[%emt 0:00:10]} 65. b4 {[%emt 0:00:24]} Rd4 {[%emt 0:01:24]} 66. Re8 {[%emt 0:00:20]} Kf6 {[%emt 0:00:12]} 67. Rb8 {[%emt 0:00:30]} Ke7 {[%emt 0:00:08]} 68. Rxb6 {[%emt 0:00:30]} Kd7 {[%emt 0:00:12]} 69. Rh6 {[%emt 0:02:15]} Kc7 {[%emt 0:00:21]} 70. Kc5 {[%emt 0:00:09]} Rd7 {[%emt 0:00:39]} 71. Kb5 {[%emt 0:03:03]} Kb7 {[%emt 0:00:24]} 72. Ka5 {[%emt 0:00:43]} Rf7 {[%emt 0:01:05]} 73. Rb6+ {[%emt 0:00:28]} Ka7 {[%emt 0:00:13]} 74. Rb5 {[%emt 0:00:34]} Rf1 {[%emt 0:00:28]} 75. Re5 {[%emt 0:00:11]} Rf7 {[%emt 0:00:09]} 76. Kb5 {[%emt 0:00:58]} Kb7 {[%emt 0:00:09]} 77. Kc5 {[%emt 0:01:09]} Rc7+ {[%emt 0:00:08]} 78. Kb5 {[%emt 0:00:35]} Rf7 {[%emt 0:00:07]} 79. Ka5 {[%emt 0:00:18]} Ka7 {[%emt 0:00:58]} 80. b5 {[%emt 0:00:01]} Kb7 {[%emt 0:00:00]} 81. Kb4 {[%emt 0:00:59]} Rg7 {[%emt 0:00:00]} 82. Re6 {[%emt 0:00:11]} Rg4+ {[%emt 0:00:39]} 83. Ka5 {[%emt 0:00:05]} Rg7 {[%emt 0:00:08]} 84. Re5 {[%emt 0:00:13]} Rf7 {[%emt 0:00:07]} 85. Kb4 {[%emt 0:00:24]} Rg7 {[%emt 0:00:08]} 86. Kc5 {[%emt 0:00:06]} Rc7+ {[%emt 0:00:06]} 1/2-1/2

[Event "CRO Team Cup 2018"]
[Site "Mali Losinj"]
[Date "2018.05.18"]
[Round "1.18"]
[White "Muha, Miljenko"]
[Black "Zelic, Branko"]
[Result "0-1"]
[ECO "D30"]
[WhiteElo "2384"]
[BlackElo "2242"]
[Annotator "NA"]
[PlyCount "80"]
[EventDate "2018.??.??"]
[EventType "team-tourn"]
[EventCountry "CRO"]
[SourceTitle "playchess.com"]
[Source "ChessBase"]
[SourceQuality "1"]
[TimeControl "40/5400+30:1800+30"]

1. c4 {[%emt 0:00:30]} c6 {[%emt 0:01:00]} 2. d4 {[%emt 0:00:00]} d5 {[%emt 0:00:30]} 3. e3 {[%emt 0:01:00]} Nf6 {[%emt 0:00:30]} 4. Qc2 {[%emt 0:01:30]} e6 {[%emt 0:06:30]} 5. Nf3 {[%emt 0:02:30]} Ne4 {[%emt 0:01:30] D30: Queen's Gambit Declined: Systems without Nc3} 6. Bd3 {[%emt 0:04:30]} f5 {[%emt 0:00:30]} 7. O-O {[%emt 0:01:30]} Bd6 {[%emt 0:01:30]} 8. b3 {[%emt 0:01:30]} (8. Ne5 O-O 9. f3 Nc5 10. Be2 Ncd7 11. f4 Nf6 12. Nd2 Nbd7 13. Rb1 Ne4 14. b4 Nxe5 15. fxe5 {1-0 (35) Harikrishna,P (2737)-Richter,M (2517) Berlin 2015}) 8... Qe7 {[%emt 0:04:30]} 9. Ne5 {[%emt 0:10:30]} Nd7 {[%emt 0:02:30]} 10. Bb2 {[%emt 0:03:30]} O-O {[%emt 0:09:30]} 11. f3 {[%emt 0:09:30]} Ng5 {[%emt 0:02:30]} 12. a4 $146 {[%emt 0:23:30]} ({Predecessor:} 12. Nd2 Nxe5 13. dxe5 {0-1 (56) Stohl,I (2543)-Michalik,P (2439) Prievidza 2009}) 12... Rf6 {[%emt 0:02:30]} 13. Ba3 {[%emt 0:07:30]} Rh6 {[%emt 0:03:30]} 14. Bxd6 {[%emt 0:09:32]} Qxd6 {[%emt 0:00:30]} 15. f4 {[%emt 0:00:52]} Ne4 {[%emt 0:01:30]} 16. Bxe4 {[%emt 0:08:13]} fxe4 {[%emt 0:00:30]} 17. c5 {[%emt 0:01:41]} Qe7 {[%emt 0:00:30]} 18. b4 {[%emt 0:00:54]} Nxe5 {[%emt 0:00:30]} 19. fxe5 {[%emt 0:01:42]} Bd7 {[%emt 0:01:30]} 20. Nc3 {[%emt 0:01:19]} Qh4 {[%emt 0:02:30]} 21. h3 {[%emt 0:01:34]} Qe7 {[%emt 0:11:30]} 22. b5 {[%emt 0:02:39]} Rh5 {[%emt 0:05:30]} 23. bxc6 {[%emt 0:01:18]} Bxc6 {[%emt 0:00:00]} 24. Nb5 {[%emt 0:00:50]} Rf5 {[%emt 0:02:00]} 25. Nd6 {[%emt 0:00:40]} Rxf1+ {[%emt 0:00:30]} 26. Rxf1 {[%emt 0:00:29]} Rf8 {[%emt 0:00:00]} 27. Rb1 {[%emt 0:01:48]} (27. Rxf8+ $16 Qxf8 28. a5) 27... Qg5 {[%emt 0:02:00]} 28. Qd2 $14 {[%emt 0:00:39]} h5 {[%emt 0:01:30]} 29. a5 {[%emt 0:00:31]} Rf3 {[%emt 0:03:30]} 30. a6 {[%emt 0:02:09]} bxa6 {[%emt 0:00:30]} 31. Rb8+ {[%emt 0:00:11]} Kh7 {[%emt 0:00:30]} 32. Kh1 {[%emt 0:00:51]} Rf1+ {[%emt 0:01:30]} 33. Kh2 {[%emt 0:00:07]} h4 {[%emt 0:00:30]} 34. g4 {[%emt 0:00:58]} hxg3+ {[%emt 0:00:30]} 35. Kg2 {[%emt 0:00:01]} Rf2+ {[%emt 0:00:30]} 36. Qxf2 {[%emt 0:00:04]} gxf2+ {[%emt 0:00:00]} 37. Kxf2 {[%emt 0:00:03]} Qh4+ {[%emt 0:00:00]} 38. Kg2 {[%emt 0:00:07]} Qe1 {[%emt 0:00:30]} 39. Rc8 {[%emt 0:00:39]} Ba4 {[%emt 0:00:30]} 40. c6 {[%emt 0:00:00]} Bd1 {[%emt 0:00:30]} 0-1